fUST/lending_fUST_20251221
["ID","MTS","AMOUNT","RATE_DAILY","PERIOD"]
[399319700,1766293840862,-6707.90933599,0.00010412,2]
[399319729,1766293843466,-500.0,0.0001041,2]
[399319730,1766293843476,-500.0,0.0001041,2]
[399319731,1766293843488,-500.0,0.0001041,2]
[399319732,1766293843499,-500.0,0.0001041,2]
[399319733,1766293843510,-500.0,0.0001041,2]
[399319734,1766293843520,-449.38806223,0.0001041,2]
[399319735,1766293843530,-500.0,0.0001041,2]
[399319736,1766293843539,-470.09666243,0.0001041,2]
[399319737,1766293843548,-500.0,0.0001041,2]
[399319738,1766293843557,-500.0,0.0001041,2]
[399319739,1766293843566,-500.0,0.0001041,2]
[399319740,1766293843576,-46.15530487,0.0001041,2]
[399319741,1766293843589,-453.84469513,0.0001041,2]
[399319742,1766293843599,-54.72393344,0.0001041,2]
[399319743,1766293843613,-445.27606656,0.0001041,2]
[399319744,1766293843623,-500.0,0.0001041,2]
[399319745,1766293843633,-500.0,0.0001041,2]
[399319747,1766293843642,-500.0,0.0001041,2]
[399319749,1766293843651,-500.0,0.0001041,2]
[399319751,1766293843660,-500.0,0.0001041,2]
[399319753,1766293843669,-500.0,0.0001041,2]
[399319755,1766293843679,-500.0,0.0001041,2]
[399319756,1766293843688,-15348.73857579,0.00010412,2]
[399319757,1766293843699,-466.4338771,0.00010412,2]
[399319758,1766293843711,-44103.95951077,0.00010412,2]
[399319759,1766293843723,-1006.48258911,0.00010412,2]
[399319760,1766293843735,-11874.6777346,0.00010412,2]
[399319784,1766293847223,-500.0,0.0001041,2]
[399319785,1766293847233,-379.9514622,0.00010412,2]
[399319786,1766293880101,300.08,9.047e-05,2]
[399319787,1766293880493,14.79041558,9.87e-05,2]
[399319788,1766293880520,585.36958442,9.87e-05,2]
[399319790,1766293960123,300.08,8.804e-05,2]
[399319791,1766293960707,600.15,9.604e-05,2]
[399319792,1766293979857,591.25371897,0.00010364,2]
[399319793,1766293982132,401.0,0.00032877,120]
[399319794,1766293986976,352.21980013,9.976e-05,2]
[399319795,1766293991777,402.53691443,0.00010199,2]
[399319796,1766294040633,290.53,8.819e-05,2]
[399319797,1766294041041,581.06,9.621e-05,2]
[399319798,1766294079936,388.24726407,0.00010197,2]
[399319800,1766294116541,354.7279112,9.529e-05,2]
[399319801,1766294121873,279.44,8.857e-05,2]
[399319802,1766294122323,558.87,9.662e-05,2]
[399319803,1766294175958,1673.83,0.00032876,120]
[399319804,1766294180918,1965.93371692,0.0003286,120]
[399319805,1766294188719,4715.52480678,0.00010402,2]
[399319806,1766294188744,284.47519322,0.00010402,2]
[399319807,1766294200927,268.77,8.824e-05,2]
[399319808,1766294201356,537.53,9.626e-05,2]
[399319809,1766294212203,5000.0,0.00010402,2]
[399319810,1766294228810,1838.90423211,0.0003,120]
[399319811,1766294235112,3909.23480678,0.00010402,2]
[399319812,1766294235148,1090.76519322,0.00010402,2]
[399319813,1766294258470,5000.0,0.00010402,2]
[399319814,1766294263007,-625.98702127,0.00010406,2]
[399319815,1766294277135,-300.00000566,0.00010406,2]
[399319816,1766294280508,-373.98174319,0.00010406,2]
[399319817,1766294281842,3909.24480678,0.00010402,2]
[399319818,1766294281864,1090.75519322,0.00010402,2]
[399319819,1766294282756,-657.04000569,0.00010406,2]
[399319820,1766294287360,-211.31776359,0.00010406,2]
[399319821,1766294291646,321.4,8.827e-05,2]
[399319822,1766294292045,642.79,9.63e-05,2]
[399319823,1766294304912,5000.0,0.00010402,2]
[399319824,1766294320866,972.63985794,0.00010402,2]
[399319825,1766294322223,-199.23685036,0.00010406,2]
[399319826,1766294325799,473.00297516,0.00010312,2]
[399319827,1766294329149,1499.42197368,0.00010402,2]
[399319828,1766294329174,3500.57802632,0.00010402,2]
[399319829,1766294345517,4183.27014206,0.00010402,2]
[399319830,1766294354055,2316.16183162,0.00010402,2]
[399319831,1766294372561,390.16,9.123e-05,2]
[399319832,1766294372982,780.33,9.953e-05,2]
[399319833,1766294384115,-216.97074727,0.00010402,2]
[399319834,1766294453516,375.27,9.086e-05,2]
[399319835,1766294453924,750.53,9.912e-05,2]
[399319836,1766294472111,-361.11367828,0.00010402,2]
[399319837,1766294533873,365.54,9.074e-05,2]
[399319838,1766294533963,500.0,0.00010385,2]
[399319839,1766294534158,500.0,0.00010385,2]
[399319840,1766294534280,731.07,9.899e-05,2]
[399319841,1766294534322,500.0,0.00010385,2]
[399319842,1766294534483,500.0,0.00010385,2]
[399319843,1766294535426,500.0,0.00010385,2]
[399319844,1766294535531,500.0,0.00010385,2]
[399319845,1766294535648,500.0,0.00010385,2]
[399319846,1766294535703,500.0,0.00010385,2]
[399319847,1766294535776,500.0,0.00010385,2]
[399319848,1766294535846,500.0,0.00010385,2]
[399319849,1766294536019,500.0,0.00010385,2]
[399319850,1766294536189,500.0,0.00010385,2]
[399319851,1766294536334,500.0,0.00010385,2]
[399319852,1766294536490,107.11,0.00010385,2]
[399319853,1766294536525,392.89,0.00010385,2]
[399319854,1766294537184,500.0,0.00010385,2]
[399319855,1766294537944,500.0,0.00010385,2]
[399319856,1766294538998,310.55317011,0.00010385,2]
[399319857,1766294556616,5000.0,0.00010401,2]
[399319858,1766294572936,3296.56682989,0.00010401,2]
[399319859,1766294575865,154.29088132,0.00010083,2]
[399319860,1766294580772,5000.0,0.00010386,2]
[399319861,1766294598589,265.11142806,9.889e-05,2]
[399319862,1766294603735,5000.0,0.0001,2]
[399319863,1766294604429,-300.00887776,0.00010053,2]
[399319864,1766294614652,488.63,9.06e-05,2]
[399319865,1766294615117,977.26,9.883e-05,2]
[399319866,1766294626367,5000.0,0.0001,2]
[399319867,1766294650087,5000.0,0.0001,2]
[399319868,1766294673295,129.44763145,0.0001,2]
[399319869,1766294681713,1604.09,0.00032876,120]
[399319870,1766294684421,-236.07555556,0.0001,2]
[399319871,1766294687048,-347.8577275,0.0001,2]
[399319872,1766294688152,-270.46411557,0.0001,2]
[399319873,1766294692162,-154.05336445,0.0001,2]
[399319874,1766294694299,-209.38098081,0.0001,2]
[399319875,1766294695848,-270.84827738,0.0001,2]
[399319876,1766294697909,-268.90755529,0.0001,2]
[399319877,1766294701972,-798.37509899,0.0001,2]
[399319878,1766294712200,-160.36195213,8.842e-05,2]
[399319879,1766294714909,-317.24804787,8.842e-05,2]
[399319880,1766294714937,-84.65276559,9.646e-05,2]
[399319881,1766294717038,-237.31706667,9.646e-05,2]
[399319882,1766294720027,-228.77823356,9.646e-05,2]
[399319883,1766294757488,-226.03353956,9.55e-05,2]
[399319884,1766294759222,-273.19444444,9.55e-05,2]
[399319885,1766294760881,-363.91625497,9.55e-05,2]
[399319886,1766294762416,-356.99595016,9.55e-05,2]
[399319887,1766294787129,-361.96242875,8.812e-05,2]
[399319888,1766294812404,1672.0,0.00032876,120]
[399319889,1766294839252,-110.19757125,8.812e-05,2]
[399319890,1766294839273,-527.88160207,9.55e-05,2]
[399319891,1766294839314,219.423158,0.00032,120]
[399319892,1766294862185,-193.71005905,8.619e-05,2]
[399319893,1766294864422,-56.28994095,8.619e-05,2]
[399319894,1766294864452,-135.59413546,8.812e-05,2]
[399319895,1766294892403,-372.29702819,8.724e-05,2]
[399319897,1766294894924,-301.98164749,8.724e-05,2]
[399319898,1766294897087,-345.39852634,8.724e-05,2]
[399319899,1766294898901,-287.85575389,8.724e-05,2]
[399319900,1766294901800,-220.57047988,8.724e-05,2]
[399319901,1766294903355,-587.43984502,8.724e-05,2]
[399319902,1766294905447,-242.17993096,8.724e-05,2]
[399319903,1766294907763,-2642.27678823,8.724e-05,2]
[399319904,1766294907795,-335.16586454,8.812e-05,2]
[399319905,1766294907823,-1083.26904408,9.55e-05,2]
[399319906,1766294907854,-937.0766063,9.614e-05,2]
[399319907,1766294907987,-4.4333937,9.614e-05,2]
[399319908,1766294908016,-526.40682208,9.823e-05,2]
[399319909,1766294908046,-342.81114332,9.849e-05,2]
[399319910,1766294908074,-200.0,0.0001,2]
[399319911,1766294908101,-375.700852,0.0001,2]
[399319912,1766294908130,-391.7841638,0.00010015,2]
[399319913,1766294908157,-375.700852,0.000101,2]
[399319914,1766294908185,-375.700852,0.000101,2]
[399319915,1766294908213,-328.1100592,0.00010164,2]
[399319916,1766294908242,-611.55059318,0.0001018,2]
[399319917,1766294908272,-1200.0,0.00010198,2]
[399319918,1766294908301,-235.61253744,0.00010199,2]
[399319919,1766294908396,-64.38746256,0.00010199,2]
[399319920,1766294908425,-375.700852,0.000102,2]
[399319921,1766294908453,-375.700852,0.000102,2]
[399319922,1766294917536,-1950.70649906,0.0001,2]
[399319923,1766294917636,-3901.41299812,0.0001,2]
[399319924,1766294917763,-2197.18400376,0.0001,2]
[399319925,1766294917791,-2691.10923825,0.0001,2]
[399319926,1766294917881,-223.42351598,0.0001,2]
[399319927,1766294917910,-249.62782387,0.00010199,2]
[399319928,1766294917942,-500.0,0.00010199,2]
[399319929,1766294917972,-494.37645136,0.00010199,2]
[399319930,1766294918054,-1215.09759695,0.000102,2]
[399319931,1766294918080,-10000.01,0.000102,2]
[399319932,1766294918125,-10000.01,0.000102,2]
[399319933,1766294918266,-10000.01,0.000102,2]
[399319934,1766294918397,-10000.01,0.000102,2]
[399319935,1766294924689,-450.99286544,8.9e-05,2]
[399319936,1766294928397,-266.28819885,8.811e-05,2]
[399319937,1766294932908,-313.90424489,8.811e-05,2]
[399319938,1766294935202,250.0,0.00032,120]
[399319939,1766294935557,-426.0902851,8.811e-05,2]
[399319940,1766294937088,-226.0902851,8.811e-05,2]
[399319941,1766294940290,-288.81878499,8.811e-05,2]
[399319942,1766294946054,-189.24179487,8.723e-05,2]
[399319943,1766294947360,-128.32179788,8.723e-05,2]
[399319944,1766294947384,-537.01450187,8.789e-05,2]
[399319945,1766294948115,-88.87549813,8.789e-05,2]
[399319946,1766294948146,-3478.80820107,8.811e-05,2]
[399319947,1766294948166,-1312.48622389,8.9e-05,2]
[399319948,1766294948188,-1056.21808815,9.588e-05,2]
[399319949,1766294955209,-195.57191185,9.588e-05,2]
[399319950,1766294955242,-300.0,0.00010199,2]
[399319951,1766294955274,-224.00377325,0.000102,2]
[399319952,1766294955346,-8560.8586298,0.000102,2]
[399319953,1766294955572,-375.700852,0.000102,2]
[399319954,1766294955605,-375.700852,0.000103,2]
[399319955,1766294955640,-300.0,0.00010311,2]
[399319956,1766294955674,-1200.0,0.00010311,2]
[399319957,1766294971127,5000.0,0.00010312,2]
[399319958,1766294987419,327.17829963,9.698e-05,2]
[399319959,1766294989201,170.02829237,9.869e-05,2]
[399319960,1766294989226,418.89264696,9.869e-05,2]
[399319961,1766294990385,1046.97055881,0.0001004,2]
[399319962,1766294992350,1634.25560664,0.00010211,2]
[399319963,1766294994343,5000.0,0.00010312,2]
[399319964,1766295002855,300.0,0.00010311,2]
[399319965,1766295004462,999.0,0.00010311,2]
[399319966,1766295005162,565.0,0.00010312,2]
[399319967,1766295016544,35.89118759,0.00010306,2]
[399319968,1766295016568,538.23736878,0.00010306,2]
[399319969,1766295018160,5000.0,0.00010312,2]
[399319970,1766295022275,602.0,8.871e-05,2]
[399319971,1766295022679,1203.99,9.677e-05,2]
[399319997,1766295032514,-303.41490542,0.00010312,2]
[399320004,1766295032571,-5151.09909898,0.00010312,2]
[399320013,1766295034843,174.73947671,0.00010311,2]
[399320047,1766295038574,-92685.87333452,0.00010312,2]
[399320113,1766295041077,-3e-08,0.00010312,2]
[399320114,1766295041140,2481.04315451,0.00010312,2]
[399320115,1766295041165,2518.95684549,0.00010312,2]
[399320132,1766295043677,-413.1399995,0.00010312,2]
[399320137,1766295049244,300.0,0.000103,2]
[399320138,1766295062474,300.0,0.00010311,2]
[399320139,1766295063919,5000.0,0.00010312,2]
[399320140,1766295087991,1881.05315451,0.00010312,2]
[399320141,1766295088016,3118.94684549,0.00010312,2]
[399320142,1766295098429,257.68561998,0.00010311,2]
[399320143,1766295101623,583.23,8.773e-05,2]
[399320144,1766295102050,1166.47,9.57e-05,2]
[399320145,1766295112291,5000.0,0.00010312,2]
[399320146,1766295122395,300.0,0.00010311,2]
[399320147,1766295132846,160.0,0.00032877,120]
[399320148,1766295134204,244.50314269,0.00010311,2]
[399320149,1766295134486,5000.0,0.00010312,2]
[399320150,1766295134982,3705.55,0.00032877,120]
[399320151,1766295141558,-8831.98779984,0.00010312,2]
[399320152,1766295141655,-10000.01,0.00010312,2]
[399320153,1766295141814,-1042.60577675,0.00010312,2]
[399320154,1766295142171,1537.25,0.00032876,120]
[399320155,1766295145852,5000.0,0.0001031,2]
[399320156,1766295156796,160.0,0.00032877,120]
[399320157,1766295180872,585.65,8.883e-05,2]
[399320158,1766295181288,1171.29,9.69e-05,2]
[399320160,1766295203286,328.35321465,9.705e-05,2]
[399320161,1766295204586,591.03578637,9.88e-05,2]
[399320162,1766295206493,238.46944548,0.00010055,2]
[399320163,1766295206516,812.2608414,0.00010055,2]
[399320164,1766295208483,1640.12430717,0.00010231,2]
[399320165,1766295213387,-5000.0,0.00010338,2]
[399320166,1766295224124,181.0,0.00032877,120]
[399320167,1766295237858,0.01,0.00010212,2]
[399320168,1766295237881,10000.01,0.00010212,2]
[399320169,1766295237903,10000.01,0.00010212,2]
[399320170,1766295237931,10000.01,0.00010212,2]
[399320171,1766295237958,10000.01,0.00010212,2]
[399320172,1766295237983,10000.01,0.00010212,2]
[399320173,1766295238009,10000.01,0.00010212,2]
[399320174,1766295238034,10000.01,0.00010212,2]
[399320175,1766295238057,10000.01,0.00010212,2]
[399320176,1766295238079,10000.01,0.00010212,2]
[399320177,1766295249491,-300.0,0.00010211,2]
[399320178,1766295261956,653.18,9.108e-05,2]
[399320179,1766295262371,1306.36,9.936e-05,2]
[399320180,1766295272498,204.96846416,0.00010211,2]
[399320181,1766295272843,353.11072179,0.00010211,2]
[399320182,1766295273542,500.0,0.00010211,2]
[399320183,1766295274467,517.89871917,0.00010211,2]
[399320184,1766295284068,150.0,9e-07,2]
[399320185,1766295286473,313.79174552,0.00032876,120]
[399320186,1766295288878,273.7061365,9.81e-05,2]
[399320187,1766295290229,312.80701314,9.981e-05,2]
[399320188,1766295292253,488.27219707,0.00010151,2]
[399320189,1766295302521,300.0,0.00010211,2]
[399320190,1766295327648,4339.70674817,0.00010212,2]
[399320191,1766295327672,660.29325183,0.00010212,2]
[399320192,1766295335599,3332.4048089,9.544e-05,2]
[399320193,1766295341564,651.46,9.092e-05,2]
[399320194,1766295342477,1302.91,9.919e-05,2]
[399320195,1766295346718,6000.0,0.000328,120]
[399320196,1766295350123,4052.94193927,0.00010212,2]
[399320197,1766295350148,947.05806073,0.00010212,2]
[399320198,1766295358400,548.79677017,0.00010185,2]
[399320199,1766295362538,300.0,0.00010211,2]
[399320200,1766295362784,300.0,0.00010211,2]
[399320201,1766295366428,5332.7,0.00032877,120]
[399320202,1766295372615,-8136.98157403,0.00010212,2]
[399320203,1766295372725,-10000.01,0.00010212,2]
[399320204,1766295372843,-10000.01,0.00010212,2]
[399320205,1766295372985,-10000.01,0.00010212,2]
[399320206,1766295373427,-10000.01,0.00010212,2]
[399320207,1766295373500,-10000.01,0.00010212,2]
[399320208,1766295373516,-10000.01,0.00010212,2]
[399320209,1766295392666,1473.2,0.00032876,120]
[399320210,1766295396997,-5000.0,0.0001011,2]
[399320211,1766295397041,-0.01,0.00010211,2]
[399320212,1766295397647,-499.99,0.00010211,2]
[399320213,1766295397722,-500.0,0.00010211,2]
[399320214,1766295397751,-500.0,0.00010211,2]
[399320215,1766295397779,-573.84738115,0.00010211,2]
[399320216,1766295419188,5000.0,0.00010212,2]
[399320217,1766295421431,711.44,8.802e-05,2]
[399320218,1766295421845,140.8952377,9.602e-05,2]
[399320219,1766295421872,1281.9847623,9.602e-05,2]
[399320220,1766295423644,300.0,0.00010211,2]
[399320221,1766295429736,-2565.69,0.00010212,2]
[399320222,1766295429900,-10000.01,0.00010212,2]
[399320223,1766295430043,-10000.01,0.00010212,2]
[399320224,1766295430165,-10000.01,0.00010212,2]
[399320225,1766295430299,-10000.01,0.00010212,2]
[399320226,1766295430441,-10000.01,0.00010212,2]
[399320227,1766295430558,-10000.01,0.00010212,2]
[399320228,1766295430667,-10000.01,0.00010212,2]
[399320229,1766295430782,-10000.01,0.00010212,2]
[399320230,1766295430896,-10000.01,0.00010212,2]
[399320231,1766295459325,-5000.0,0.0001011,2]
[399320232,1766295465780,0.01,0.0001011,2]
[399320233,1766295465806,4999.99,0.0001011,2]
[399320234,1766295483041,208.14,3.436e-05,2]
[399320235,1766295483303,208.14,3.436e-05,2]
[399320236,1766295483582,208.14,3.436e-05,2]
[399320237,1766295487258,-300.0,0.00010211,2]
[399320238,1766295487289,-1128.0,0.00010211,2]
[399320239,1766295488832,5000.0,0.0001011,2]
[399320240,1766295500080,819.94,8.786e-05,2]
[399320241,1766295500497,1324.07,9.585e-05,2]
[399320242,1766295500524,315.8,9.585e-05,2]
[399320243,1766295509150,346.26552832,9.613e-05,2]
[399320244,1766295510661,623.27795098,9.752e-05,2]
[399320245,1766295511951,1108.04969063,9.891e-05,2]
[399320246,1766295512944,5000.0,0.00010212,2]
[399320247,1766295513841,1731.3276416,0.0001003,2]
[399320248,1766295515571,875.28918847,0.00010169,2]
[399320249,1766295515596,1615.32950364,0.00010169,2]
[399320250,1766295530181,-5616.26049636,0.00010212,2]
[399320251,1766295530510,-10000.01,0.00010212,2]
[399320252,1766295530860,-10000.01,0.00010212,2]
[399320253,1766295532018,-10000.01,0.00010212,2]
[399320254,1766295536458,5000.0,0.00010212,2]
[399320255,1766295549156,-300.0,0.00010211,2]
[399320256,1766295549198,-4400.01,0.00010212,2]
[399320257,1766295549359,-10000.01,0.00010212,2]
[399320258,1766295549487,-10000.01,0.00010212,2]
[399320259,1766295549821,-10000.01,0.00010212,2]
[399320260,1766295549930,-10000.01,0.00010212,2]
[399320261,1766295562498,-5000.0,0.0001011,2]
[399320262,1766295562535,-0.01,0.00010211,2]
[399320263,1766295562601,-499.99,0.00010211,2]
[399320264,1766295562629,-574.32448306,0.00010211,2]
[399320265,1766295562655,-164.6150673,0.00010211,2]
[399320266,1766295562684,-500.0,0.00010211,2]
[399320267,1766295562712,-344.28922543,0.00010211,2]
[399320268,1766295562739,-291.65790008,0.00010211,2]
[399320269,1766295562768,-500.0,0.00010211,2]
[399320270,1766295562796,-500.0,0.00010211,2]
[399320271,1766295562822,-604.18511917,0.00010211,2]
[399320272,1766295562986,-2041.88640992,0.00010212,2]
[399320273,1766295563009,-10000.01,0.00010212,2]
[399320274,1766295563037,-10000.01,0.00010212,2]
[399320275,1766295563060,-10000.01,0.00010212,2]
[399320276,1766295579931,-464.26629106,9.771e-05,2]
[399320277,1766295580836,931.96,8.795e-05,2]
[399320278,1766295581449,1863.91,9.594e-05,2]
[399320279,1766295582908,5000.0,9.673e-05,2]
[399320280,1766295590089,316.13951275,9.853e-05,2]
[399320281,1766295591771,361.30230029,0.00010073,2]
[399320283,1766295602482,300.0,0.00010211,2]
[399320284,1766295604585,298.16560484,0.00010212,2]
[399320285,1766295604610,264.83439516,0.00010212,2]
[399320286,1766295606564,5000.0,0.00010212,2]
[399320287,1766295611136,1411.82,0.00032876,120]
[399320288,1766295613256,2887.07934122,0.00010212,2]
[399320289,1766295613414,500.0,0.00010212,2]
[399320290,1766295613701,574.12855637,0.00010212,2]
[399320291,1766295614041,158.13088758,0.00010212,2]
[399320292,1766295629871,-1544.36940179,0.00010212,2]
[399320293,1766295629930,615.83681967,0.00010212,2]
[399320294,1766295629955,4384.16318033,0.00010212,2]
[399320295,1766295629999,-5000.01,0.00010212,2]
[399320296,1766295630015,-10000.01,0.00010212,2]
[399320297,1766295647150,10000.0,0.00032877,120]
[399320298,1766295652756,5000.0,0.00010212,2]
[399320299,1766295662501,300.0,0.00010211,2]
[399320300,1766295662561,10000.0,0.00014,30]
[399320301,1766295670112,1077.09,9.132e-05,2]
[399320302,1766295670508,2154.17,9.963e-05,2]
[399320303,1766295676721,1468.75,0.00010212,2]
[399320304,1766295676751,3531.25,0.00010212,2]
[399320305,1766295699884,5000.0,0.00010212,2]
[399320306,1766295700987,439.03741616,0.0001013,2]
[399320307,1766295719700,439.77,0.00032876,120]
[399320308,1766295721201,-1029.72258384,0.00010212,2]
[399320309,1766295721328,-10000.01,0.00010212,2]
[399320310,1766295733853,-188.34,0.0001,2]
[399320311,1766295733883,-188.34,0.000102,2]
[399320312,1766295733943,-9246.65,0.00010205,2]
[399320313,1766295733970,-10000.01,0.00010205,2]
[399320314,1766295745885,-1938.56274342,0.00010103,2]
[399320315,1766295755924,1074.24,9.07e-05,2]
[399320316,1766295756378,2148.47,9.894e-05,2]
[399320317,1766295762254,-178.24279102,0.00010204,2]
[399320318,1766295762284,-230.42748679,0.00010204,2]
[399320319,1766295762316,-639.49341512,0.00010204,2]
[399320320,1766295770103,500.0,0.00010204,2]
[399320321,1766295770137,525.0,0.00010204,2]
[399320322,1766295770172,500.0,0.00010204,2]
[399320323,1766295770216,500.0,0.00010204,2]
[399320324,1766295782769,300.0,0.00010204,2]
[399320325,1766295793423,-4452.3,0.00010205,2]
[399320326,1766295793442,-10000.01,0.00010205,2]
[399320327,1766295793496,-3969.0533368,0.00010205,2]
[399320328,1766295793520,-2061.9033264,0.00010205,2]
[399320329,1766295793680,-1883.3487909,0.00010205,2]
[399320330,1766295794270,1504.45730171,9.981e-05,2]
[399320331,1766295812631,203.70149091,9.641e-05,2]
[399320332,1766295813942,500.0,0.00010204,2]
[399320333,1766295813981,308.43159463,0.00010204,2]
[399320334,1766295815125,366.66268364,9.87e-05,2]
[399320335,1766295816394,651.84477092,0.00010098,2]
[399320336,1766295824386,350.0,0.00032877,120]
[399320337,1766295836690,1071.63,8.954e-05,2]
[399320338,1766295836722,1626.58457639,9.768e-05,2]
[399320339,1766295836748,516.68542361,9.768e-05,2]
[399320340,1766295858796,1352.99,0.00032876,120]
[399320341,1766295862187,500.0,0.00010204,2]
[399320342,1766295864853,-300.0,0.00010211,2]
[399320343,1766295878399,246.72629659,9.8e-05,2]
[399320344,1766295892839,171.45438975,9.395e-05,2]
[399320345,1766295894318,-5000.0,0.00010212,2]
[399320346,1766295894584,0.01,9.837e-05,2]
[399320347,1766295894607,308.60790155,9.837e-05,2]
[399320348,1766295896053,548.65404721,0.00010058,2]
[399320349,1766295902471,300.0,0.00010211,2]
[399320351,1766295903473,5000.0,0.00010212,2]
[399320352,1766295906382,188.71,0.0001,2]
[399320353,1766295909637,1200.0,0.00010211,2]
[399320354,1766295912582,574.12855637,0.00010212,2]
[399320355,1766295916430,1030.72,8.805e-05,2]
[399320356,1766295916838,849.18949487,9.606e-05,2]
[399320357,1766295916866,1212.25050513,9.606e-05,2]
[399320358,1766295918107,-1119.57096672,0.00010212,2]
[399320359,1766295928093,-5000.0,0.00010109,2]
[399320360,1766295928130,-0.01,0.00010211,2]
[399320361,1766295928189,-499.99,0.00010211,2]
[399320362,1766295928218,-500.0,0.00010211,2]
[399320363,1766295928250,-500.0,0.00010211,2]
[399320364,1766295928284,-500.0,0.00010211,2]
[399320365,1766295928316,-475.0,0.00010211,2]
[399320366,1766295928346,-500.0,0.00010211,2]
[399320367,1766295928375,-215.16874799,0.00010211,2]
[399320368,1766295928527,-3619.69250402,0.00010212,2]
[399320369,1766295942610,564.08453833,0.00010202,2]
[399320370,1766295950372,5000.0,0.00010202,2]
[399320371,1766295974269,4435.92546167,0.00010202,2]
[399320372,1766295974292,564.07453833,0.00010202,2]
[399320373,1766295997863,1057.98,8.815e-05,2]
[399320374,1766295998659,2115.97,9.617e-05,2]
[399320375,1766295998693,5000.0,0.00010202,2]
[399320376,1766296021760,1261.98546167,0.00010202,2]
[399320377,1766296021786,3738.01453833,0.00010202,2]
[399320378,1766296044940,5000.0,0.00010202,2]
[399320379,1766296046334,351.22993292,0.00010179,2]
[399320380,1766296052122,-300.0,0.0001021,2]
[399320381,1766296052142,-148.41726721,0.00010211,2]
[399320382,1766296061103,579.56169804,0.00010202,2]
[399320383,1766296068910,331.20383071,0.00010202,2]
[399320384,1766296081896,1149.0,8.794e-05,2]
[399320385,1766296082334,2298.0,9.594e-05,2]
[399320387,1766296095920,178.46991475,9.876e-05,2]
[399320388,1766296106352,1296.62,0.00032876,120]
[399320389,1766296114012,345.59778105,9.615e-05,2]
[399320390,1766296116073,622.07600588,9.838e-05,2]
[399320391,1766296117687,1105.91289935,0.0001006,2]
[399320392,1766296131184,189.99995999,0.00010192,2]
[399320393,1766296137039,822.291107,0.00030137,120]
[399320394,1766296137773,-667.15319835,0.00010202,2]
[399320395,1766296141036,-182.25682745,0.00010202,2]
[399320396,1766296142568,-322.31467178,0.00010202,2]
[399320397,1766296144105,-345.94663555,0.00010202,2]
[399320398,1766296161271,1105.13,9.161e-05,2]
[399320399,1766296161689,2210.25,9.994e-05,2]
[399320400,1766296167528,-236.0063417,0.00010202,2]
[399320401,1766296169095,-261.83091403,0.00010202,2]
[399320402,1766296174615,-199.02803357,0.00010202,2]
[399320403,1766296178194,-326.72799871,0.00010202,2]
[399320404,1766296180961,-257.18022174,0.00010202,2]
[399320405,1766296181331,279.71586986,9.826e-05,2]
[399320406,1766296187363,-270.70932363,0.00010202,2]
[399320407,1766296188977,-386.9471591,0.00010202,2]
[399320408,1766296191099,-275.49098787,0.00010202,2]
[399320409,1766296194051,-289.10183338,0.00010202,2]
[399320410,1766296195172,-281.44978733,0.00010202,2]
[399320411,1766296228309,200.42080952,0.00013699,30]
[399320412,1766296228435,200.42080952,0.00013753,30]
[399320413,1766296229105,-563.0,0.00010202,2]
[399320414,1766296229133,-640.096,0.00010202,2]
[399320428,1766296231573,-356.90616913,0.00010202,2]
[399320429,1766296231634,-9.74606597,0.00010202,2]
[399320430,1766296231644,-300.0,0.00010209,2]
[399320431,1766296231654,-215.32150677,0.0001021,2]
[399320432,1766296231667,-31.85599848,0.0001021,2]